[Event "2026 European Womens Championship"]
[Site "Batumi, GE"]
[Date "2026.06.05"]
[Round "11"]
[White "Berke, Ana"]
[Black "Urh, Zala"]
[Result "0-1"]
[Board "41"]
[TimeControl "5400+30"]
[WhiteFideId "14510359"]
[BlackFideId "14611481"]
[WhiteElo "2164"]
[BlackElo "2263"]
[WhiteTitle "WIM"]
[BlackTitle "WIM"]
[WhiteClock "0:09:29"]
[BlackClock "0:07:18"]
[Variant "Standard"]

1. d4 {[%clk 1:30:31]}  Nf6 {[%clk 1:30:53]} 2. Nc3 {[%clk 1:30:48]}  d5 {[%clk 1:31:17]} 3. Bg5 {[%clk 1:31:07]}  Nbd7 {[%clk 1:31:26]}
4. f3 {[%clk 1:30:48]}  c6 {[%clk 1:31:36]} 5. e4 {[%clk 1:30:27]}  dxe4 {[%clk 1:31:58]} 6. Qd2 {[%clk 1:30:14]}  exf3 {[%clk 1:31:33]}
7. Nxf3 {[%clk 1:30:39]}  h6 {[%clk 1:31:42]} 8. Be3 {[%clk 1:30:04]}  Nb6 {[%clk 1:30:59]} 9. Bd3 {[%clk 1:23:13]}  g6 {[%clk 1:29:06]}
10. Ne5 {[%clk 1:13:40]}  Bf5 {[%clk 1:25:13]} 11. O-O-O {[%clk 1:08:59]}  e6 {[%clk 1:10:25]} 12. h3 {[%clk 1:01:25]}  Nfd5 {[%clk 0:58:47]}
13. g4 {[%clk 0:52:25]}  Bxd3 {[%clk 0:55:46]} 14. Qxd3 {[%clk 0:52:31]}  Nxc3 {[%clk 0:49:12]} 15. Qxc3 {[%clk 0:52:22]}  Nd5 {[%clk 0:49:31]}
16. Qd3 {[%clk 0:41:17]}  Nxe3 {[%clk 0:42:51]} 17. Qxe3 {[%clk 0:40:38]}  Qg5 {[%clk 0:42:26]} 18. Qxg5 {[%clk 0:40:05]}  hxg5 {[%clk 0:42:52]}
19. Rdf1 {[%clk 0:38:37]}  Rh7 {[%clk 0:42:21]} 20. Rf3 {[%clk 0:38:03]}  Be7 {[%clk 0:35:35]} 21. Rhf1 {[%clk 0:36:36]}  f6 {[%clk 0:34:38]}
22. Nxg6 {[%clk 0:33:29]}  Bd8 {[%clk 0:32:43]} 23. h4 {[%clk 0:30:42]}  gxh4 {[%clk 0:33:09]} 24. Nf4 {[%clk 0:30:00]}  Kd7 {[%clk 0:30:31]}
25. Re3 {[%clk 0:28:56]}  Be7 {[%clk 0:21:45]} 26. Nxe6 {[%clk 0:24:30]}  Rg8 {[%clk 0:21:24]} 27. Nc5+ {[%clk 0:19:22]}  Bxc5 {[%clk 0:19:21]}
28. dxc5 {[%clk 0:19:47]}  Rxg4 {[%clk 0:19:00]} 29. Rd1+ {[%clk 0:12:13]}  Kc7 {[%clk 0:19:24]} 30. Rde1 {[%clk 0:10:37]}  h3 {[%clk 0:10:55]}
31. Re7+ {[%clk 0:10:12]}  Rxe7 {[%clk 0:11:21]} 32. Rxe7+ {[%clk 0:10:39]}  Kc8 {[%clk 0:11:48]} 33. Rh7 {[%clk 0:11:00]}  Rg1+ {[%clk 0:10:59]}
34. Kd2 {[%clk 0:11:25]}  Rh1 {[%clk 0:10:51]} 35. Rh8+ {[%clk 0:08:37]}  Kd7 {[%clk 0:11:16]} 36. Rh7+ {[%clk 0:08:55]}  Kd8 {[%clk 0:06:40]}
37. Rxb7 {[%clk 0:08:43]}  h2 {[%clk 0:07:06]} 38. Rh7 {[%clk 0:09:04]}  a5 {[%clk 0:06:31]} 39. a4 {[%clk 0:09:25]}  f5 {[%clk 0:06:35]}
40. b4 {[%clk 0:09:51]}  axb4 {[%clk 0:07:00]} 41. a5 {[%clk 0:10:17]}  Kc8 {[%clk 0:06:52]} 42. a6 {[%clk 0:09:29]}  Kb8 {[%clk 0:07:18]}
43. Kd3 {[%clk 0:08:36]} 0-1

[Event "2026 European Womens Championship"]
[Site "Batumi, GE"]
[Date "2026.06.05"]
[Round "11"]
[White "Tsetskhladze, Mariam"]
[Black "Odisharia, Teona"]
[Result "1-0"]
[Board "42"]
[TimeControl "5400+30"]
[WhiteFideId "13623834"]
[BlackFideId "13602322"]
[WhiteElo "2234"]
[BlackElo "2167"]
[WhiteTitle "WFM"]
[BlackTitle "WFM"]
[WhiteClock "0:00:40"]
[BlackClock "0:00:39"]
[Variant "Standard"]

1. e4 {[%clk 1:30:47]}  c5 {[%clk 1:30:58]} 2. Nf3 {[%clk 1:31:11]}  d6 {[%clk 1:31:21]} 3. d4 {[%clk 1:31:34]}  cxd4 {[%clk 1:31:32]}
4. Qxd4 {[%clk 1:31:52]}  Nc6 {[%clk 1:30:54]} 5. Bb5 {[%clk 1:32:04]}  Bd7 {[%clk 1:30:41]} 6. Qd3 {[%clk 1:32:21]}  g6 {[%clk 1:28:54]}
7. c4 {[%clk 1:32:40]}  Bg7 {[%clk 1:29:20]} 8. Nc3 {[%clk 1:33:06]}  Nf6 {[%clk 1:29:29]} 9. O-O {[%clk 1:33:29]}  O-O {[%clk 1:29:55]}
10. h3 {[%clk 1:33:45]}  Rc8 {[%clk 1:23:43]} 11. Be3 {[%clk 1:29:57]}  a6 {[%clk 1:26:27]} 12. Bxc6 {[%clk 1:30:20]}  Bxc6 {[%clk 1:26:30]}
13. Rfd1 {[%clk 1:21:40]}  Nd7 {[%clk 1:16:34]} 14. Rac1 {[%clk 1:04:59]}  Qa5 {[%clk 1:13:30]} 15. Qb1 {[%clk 1:04:16]}  Ne5 {[%clk 0:42:22]}
16. Nxe5 {[%clk 0:49:00]}  Qxe5 {[%clk 0:42:31]} 17. Bd4 {[%clk 0:31:08]}  Qg5 {[%clk 0:42:20]} 18. Bxg7 {[%clk 0:29:21]}  Kxg7 {[%clk 0:42:45]}
19. Nd5 {[%clk 0:24:47]}  e6 {[%clk 0:33:29]} 20. Nb4 {[%clk 0:24:13]}  f5 {[%clk 0:33:40]} 21. Nxc6 {[%clk 0:23:09]}  Rxc6 {[%clk 0:34:04]}
22. exf5 {[%clk 0:18:21]}  Rxf5 {[%clk 0:33:10]} 23. Qe4 {[%clk 0:16:24]}  Qf6 {[%clk 0:31:41]} 24. Qe2 {[%clk 0:15:26]}  Re5 {[%clk 0:28:29]}
25. Qd2 {[%clk 0:15:37]}  Re4 {[%clk 0:27:05]} 26. Qb4 {[%clk 0:13:20]}  b5 {[%clk 0:15:59]} 27. Rxd6 {[%clk 0:09:20]}  Re2 {[%clk 0:15:26]}
28. Rf1 {[%clk 0:06:44]}  Rxc4 {[%clk 0:12:08]} 29. Rd7+ {[%clk 0:03:06]}  Kh6 {[%clk 0:12:32]} 30. Qa3 {[%clk 0:02:13]}  Rcc2 {[%clk 0:09:37]}
31. Qg3 {[%clk 0:02:24]}  Rxb2 {[%clk 0:09:50]} 32. Qc7 {[%clk 0:02:22]}  Rbc2 {[%clk 0:04:28]} 33. Rxh7+ {[%clk 0:01:07]}  Kg5 {[%clk 0:04:53]}
34. Qg3+ {[%clk 0:00:58]}  Kf5 {[%clk 0:05:06]} 35. Rh4 {[%clk 0:00:39]}  Qg5 {[%clk 0:03:10]} 36. Rg4 {[%clk 0:00:49]}  Qd2 {[%clk 0:01:45]}
37. h4 {[%clk 0:00:38]}  Rc1 {[%clk 0:00:39]} 38. Rg5+ {[%clk 0:00:40]} 1-0

[Event "2026 European Womens Championship"]
[Site "Batumi, GE"]
[Date "2026.06.05"]
[Round "11"]
[White "Skvortsova, Alena"]
[Black "Bashylina, Luisa"]
[Result "1/2-1/2"]
[Board "43"]
[TimeControl "5400+30"]
[WhiteFideId "24166251"]
[BlackFideId "12983292"]
[WhiteElo "2135"]
[BlackElo "2208"]
[WhiteTitle "WFM"]
[BlackTitle "WFM"]
[WhiteClock "0:08:00"]
[BlackClock "0:09:52"]
[Variant "Standard"]

1. e4 {[%clk 1:30:57]}  c5 {[%clk 1:30:56]} 2. d4 {[%clk 1:31:20]}  cxd4 {[%clk 1:31:22]} 3. Qxd4 {[%clk 1:31:45]}  Nc6 {[%clk 1:31:46]}
4. Qd3 {[%clk 1:32:10]}  d6 {[%clk 1:30:24]} 5. Nf3 {[%clk 1:29:49]}  g6 {[%clk 1:28:14]} 6. Nc3 {[%clk 1:29:42]}  Bg7 {[%clk 1:28:26]}
7. Be2 {[%clk 1:29:54]}  Nf6 {[%clk 1:28:16]} 8. Nd5 {[%clk 1:29:10]}  Nd7 {[%clk 1:21:28]} 9. c3 {[%clk 1:28:22]}  Nc5 {[%clk 1:18:18]}
10. Qc2 {[%clk 1:27:24]}  O-O {[%clk 1:12:05]} 11. Bg5 {[%clk 1:26:59]}  f5 {[%clk 1:04:34]} 12. exf5 {[%clk 1:26:12]}  Bxf5 {[%clk 1:03:01]}
13. Qd1 {[%clk 1:25:32]}  Qd7 {[%clk 0:57:10]} 14. O-O {[%clk 1:23:35]}  Ne4 {[%clk 0:53:32]} 15. Bh4 {[%clk 1:21:02]}  Kh8 {[%clk 0:49:53]}
16. Ne3 {[%clk 1:15:44]}  Be6 {[%clk 0:43:53]} 17. Qc2 {[%clk 1:01:10]}  Nf6 {[%clk 0:41:20]} 18. Rfd1 {[%clk 0:51:48]}  Ng4 {[%clk 0:36:29]}
19. Bg5 {[%clk 0:44:37]}  Rac8 {[%clk 0:32:29]} 20. Qa4 {[%clk 0:43:49]}  Nxe3 {[%clk 0:27:10]} 21. Bxe3 {[%clk 0:43:38]}  Bg4 {[%clk 0:20:23]}
22. h3 {[%clk 0:34:31]}  Bxf3 {[%clk 0:17:57]} 23. Bxf3 {[%clk 0:34:54]}  Qc7 {[%clk 0:18:04]} 24. Bd5 {[%clk 0:23:57]}  a6 {[%clk 0:17:32]}
25. h4 {[%clk 0:23:46]}  Ne5 {[%clk 0:17:00]} 26. h5 {[%clk 0:23:07]}  gxh5 {[%clk 0:15:46]} 27. Qh4 {[%clk 0:22:42]}  Ng4 {[%clk 0:14:01]}
28. Qxh5 {[%clk 0:13:50]}  Nf6 {[%clk 0:14:26]} 29. Qh3 {[%clk 0:13:22]}  Nxd5 {[%clk 0:14:51]} 30. Rxd5 {[%clk 0:13:46]}  Qc4 {[%clk 0:14:01]}
31. Rad1 {[%clk 0:12:13]}  Qe4 {[%clk 0:13:25]} 32. Rg5 {[%clk 0:06:56]}  Bf6 {[%clk 0:12:13]} 33. Rg4 {[%clk 0:07:11]}  Qc2 {[%clk 0:11:53]}
34. Rd2 {[%clk 0:07:34]}  Qb1+ {[%clk 0:12:07]} 35. Kh2 {[%clk 0:08:00]}  Rg8 {[%clk 0:09:52]} 1/2-1/2

[Event "2026 European Womens Championship"]
[Site "Batumi, GE"]
[Date "2026.06.05"]
[Round "11"]
[White "Vidic, Teja"]
[Black "Ibrahimova, Sabina"]
[Result "1/2-1/2"]
[Board "44"]
[TimeControl "5400+30"]
[WhiteFideId "14605511"]
[BlackFideId "13403893"]
[WhiteElo "2123"]
[BlackElo "2205"]
[WhiteTitle "WIM"]
[BlackTitle "WIM"]
[WhiteClock "0:48:14"]
[BlackClock "0:18:13"]
[Variant "Standard"]

1. e4 {[%clk 1:30:57]}  e5 {[%clk 1:28:02]} 2. Nf3 {[%clk 1:31:12]}  Nf6 {[%clk 1:28:11]} 3. d4 {[%clk 1:31:25]}  Nxe4 {[%clk 1:28:15]}
4. Bd3 {[%clk 1:31:41]}  d5 {[%clk 1:28:18]} 5. Nxe5 {[%clk 1:31:52]}  Nd7 {[%clk 1:15:24]} 6. Nc3 {[%clk 1:31:14]}  Nxe5 {[%clk 1:15:17]}
7. dxe5 {[%clk 1:31:32]}  Bb4 {[%clk 1:14:56]} 8. O-O {[%clk 1:31:24]}  Nxc3 {[%clk 1:15:05]} 9. bxc3 {[%clk 1:31:47]}  Bxc3 {[%clk 1:15:30]}
10. Rb1 {[%clk 1:32:13]}  O-O {[%clk 1:15:50]} 11. Bxh7+ {[%clk 1:32:25]}  Kxh7 {[%clk 1:16:15]} 12. Qd3+ {[%clk 1:32:50]}  Kg8 {[%clk 1:16:27]}
13. Qxc3 {[%clk 1:33:12]}  a5 {[%clk 1:16:49]} 14. Qg3 {[%clk 1:31:54]}  Ra6 {[%clk 1:15:21]} 15. Bg5 {[%clk 1:32:12]}  Qd7 {[%clk 1:15:34]}
16. f4 {[%clk 1:32:37]}  Qf5 {[%clk 1:15:36]} 17. Rb3 {[%clk 1:32:52]}  Rg6 {[%clk 1:13:58]} 18. Qf2 {[%clk 1:33:03]}  f6 {[%clk 1:11:48]}
19. exf6 {[%clk 1:33:19]}  gxf6 {[%clk 1:12:12]} 20. Bh4 {[%clk 1:33:43]}  Re8 {[%clk 1:09:54]} 21. h3 {[%clk 1:26:00]}  Qe4 {[%clk 1:03:00]}
22. g4 {[%clk 1:18:54]}  f5 {[%clk 0:58:07]} 23. Rg3 {[%clk 1:02:24]}  Kh7 {[%clk 0:46:00]} 24. Rg2 {[%clk 0:49:14]}  Qe3 {[%clk 0:35:36]}
25. Re1 {[%clk 0:47:07]}  Qxe1+ {[%clk 0:26:53]} 26. Qxe1 {[%clk 0:47:18]}  Rxe1+ {[%clk 0:27:18]} 27. Bxe1 {[%clk 0:47:42]}  fxg4 {[%clk 0:25:26]}
28. hxg4 {[%clk 0:48:06]}  Bxg4 {[%clk 0:21:49]} 29. Bxa5 {[%clk 0:47:43]}  Bf5 {[%clk 0:17:43]} 30. Rxg6 {[%clk 0:47:55]}  Kxg6 {[%clk 0:18:04]}
31. Bxc7 {[%clk 0:48:19]}  Bxc2 {[%clk 0:18:13]} 32. Kf2 {[%clk 0:48:14]} 1/2-1/2

[Event "2026 European Womens Championship"]
[Site "Batumi, GE"]
[Date "2026.06.05"]
[Round "11"]
[White "Aydin, Gulenay"]
[Black "Mamedjarova, Zeinab"]
[Result "1-0"]
[Board "45"]
[TimeControl "5400+30"]
[WhiteFideId "34557431"]
[BlackFideId "13401521"]
[WhiteElo "2204"]
[BlackElo "2137"]
[WhiteTitle "WIM"]
[BlackTitle "WGM"]
[WhiteClock "0:40:43"]
[BlackClock "0:10:27"]
[Variant "Standard"]

1. e4 {[%clk 1:30:49]}  e5 {[%clk 1:30:43]} 2. Nf3 {[%clk 1:30:47]}  d6 {[%clk 1:30:43]} 3. d4 {[%clk 1:31:01]}  Nd7 {[%clk 1:30:59]}
4. Nc3 {[%clk 1:31:24]}  Ngf6 {[%clk 1:31:10]} 5. a4 {[%clk 1:31:41]}  a5 {[%clk 1:31:07]} 6. Bc4 {[%clk 1:31:56]}  Be7 {[%clk 1:29:31]}
7. Ng5 {[%clk 1:31:36]}  O-O {[%clk 1:28:25]} 8. Bxf7+ {[%clk 1:31:45]}  Rxf7 {[%clk 1:28:49]} 9. Ne6 {[%clk 1:32:12]}  Qe8 {[%clk 1:29:14]}
10. Nxc7 {[%clk 1:32:37]}  Qd8 {[%clk 1:28:36]} 11. Nxa8 {[%clk 1:33:03]}  b6 {[%clk 1:11:17]} 12. Nb5 {[%clk 1:32:00]}  Ne8 {[%clk 0:48:57]}
13. dxe5 {[%clk 1:21:48]}  Bb7 {[%clk 0:27:36]} 14. e6 {[%clk 1:18:36]}  Rxf2 {[%clk 0:16:42]} 15. Kxf2 {[%clk 1:09:20]}  Bh4+ {[%clk 0:16:46]}
16. g3 {[%clk 1:04:38]}  Ne5 {[%clk 0:15:02]} 17. Re1 {[%clk 0:55:28]}  Bxa8 {[%clk 0:13:41]} 18. Kg1 {[%clk 0:41:08]}  Qf6 {[%clk 0:10:27]}
19. Ra3 {[%clk 0:40:43]} 1-0

[Event "2026 European Womens Championship"]
[Site "Batumi, GE"]
[Date "2026.06.05"]
[Round "11"]
[White "Siekanska, Maria"]
[Black "Liavonava, Yuliya"]
[Result "0-1"]
[Board "46"]
[TimeControl "5400+30"]
[WhiteFideId "21852650"]
[BlackFideId "13524178"]
[WhiteElo "2203"]
[BlackElo "2118"]
[WhiteTitle "WIM"]
[BlackTitle "WFM"]
[WhiteClock "0:16:17"]
[BlackClock "0:14:40"]
[Variant "Standard"]

1. e4 {[%clk 1:30:58]}  c5 {[%clk 1:30:55]} 2. Nf3 {[%clk 1:31:25]}  d6 {[%clk 1:31:20]} 3. Bb5+ {[%clk 1:31:49]}  Nd7 {[%clk 1:31:40]}
4. a4 {[%clk 1:32:13]}  Ngf6 {[%clk 1:30:41]} 5. Nc3 {[%clk 1:32:38]}  a6 {[%clk 1:30:15]} 6. Be2 {[%clk 1:32:50]}  g6 {[%clk 1:30:35]}
7. O-O {[%clk 1:32:48]}  Bg7 {[%clk 1:31:01]} 8. a5 {[%clk 1:33:00]}  b5 {[%clk 1:30:56]} 9. axb6 {[%clk 1:33:24]}  Bb7 {[%clk 1:31:22]}
10. d3 {[%clk 1:33:23]}  Qxb6 {[%clk 1:31:01]} 11. Na4 {[%clk 1:28:06]}  Qc7 {[%clk 1:30:54]} 12. Bg5 {[%clk 1:27:45]}  h6 {[%clk 1:30:53]}
13. Bd2 {[%clk 1:28:03]}  O-O {[%clk 1:30:32]} 14. Bc3 {[%clk 1:25:20]}  Ne5 {[%clk 1:28:24]} 15. Nxe5 {[%clk 1:22:31]}  dxe5 {[%clk 1:28:50]}
16. b3 {[%clk 1:21:55]}  Nd7 {[%clk 1:26:23]} 17. Qd2 {[%clk 1:11:15]}  f5 {[%clk 1:12:28]} 18. Bf3 {[%clk 0:52:56]}  g5 {[%clk 1:07:54]}
19. h3 {[%clk 0:49:00]}  f4 {[%clk 0:57:47]} 20. Ba5 {[%clk 0:39:28]}  Qd6 {[%clk 0:54:04]} 21. b4 {[%clk 0:37:23]}  c4 {[%clk 0:49:50]}
22. Rfd1 {[%clk 0:34:21]}  Qg6 {[%clk 0:46:04]} 23. dxc4 {[%clk 0:33:28]}  Nf6 {[%clk 0:46:09]} 24. Nc5 {[%clk 0:33:15]}  Bc8 {[%clk 0:45:18]}
25. Nd3 {[%clk 0:23:39]}  Nxe4 {[%clk 0:41:21]} 26. Qe1 {[%clk 0:22:50]}  Bb7 {[%clk 0:38:42]} 27. Ra3 {[%clk 0:21:38]}  h5 {[%clk 0:37:23]}
28. Bxe4 {[%clk 0:22:02]}  Bxe4 {[%clk 0:36:50]} 29. f3 {[%clk 0:22:27]}  Bb7 {[%clk 0:32:21]} 30. Nc5 {[%clk 0:19:48]}  Bc6 {[%clk 0:31:28]}
31. Ne4 {[%clk 0:19:40]}  g4 {[%clk 0:28:49]} 32. Kh1 {[%clk 0:18:06]}  Kh8 {[%clk 0:22:07]} 33. Rd2 {[%clk 0:16:01]}  Bf6 {[%clk 0:17:02]}
34. Re2 {[%clk 0:14:33]}  gxh3 {[%clk 0:16:14]} 35. gxh3 {[%clk 0:14:56]}  Rg8 {[%clk 0:16:20]} 36. Qf1 {[%clk 0:13:36]}  Qf5 {[%clk 0:15:43]}
37. Bb6 {[%clk 0:11:29]}  Qe6 {[%clk 0:12:12]} 38. Bc7 {[%clk 0:08:40]}  Bxe4 {[%clk 0:10:36]} 39. Rxe4 {[%clk 0:05:14]}  Rg3 {[%clk 0:09:54]}
40. Kh2 {[%clk 0:05:40]}  Rag8 {[%clk 0:09:49]} 41. Rd3 {[%clk 0:27:42]}  R8g5 {[%clk 0:29:42]} 42. Rd2 {[%clk 0:22:35]}  Kh7 {[%clk 0:29:19]}
43. b5 {[%clk 0:19:33]}  Qg8 {[%clk 0:14:26]} 44. b6 {[%clk 0:16:46]}  Rg1 {[%clk 0:14:41]} 45. Qf2 {[%clk 0:17:11]}  R5g3 {[%clk 0:14:54]}
46. Re1 {[%clk 0:17:02]}  Qe6 {[%clk 0:15:00]} 47. Qxg3 {[%clk 0:15:50]}  Rxg3 {[%clk 0:15:25]} 48. Kh1 {[%clk 0:16:17]}  Rxf3 {[%clk 0:14:40]} 0-1

[Event "2026 European Womens Championship"]
[Site "Batumi, GE"]
[Date "2026.06.05"]
[Round "11"]
[White "Chernyak, Viktoria"]
[Black "Ivanytska, Liudmyla"]
[Result "1/2-1/2"]
[Board "47"]
[TimeControl "5400+30"]
[WhiteFideId "24165956"]
[BlackFideId "14176211"]
[WhiteElo "2191"]
[BlackElo "2112"]
[WhiteTitle "WGM"]
[WhiteClock "0:19:53"]
[BlackClock "1:05:29"]
[Variant "Standard"]

1. d4 {[%clk 1:30:59]}  Nf6 {[%clk 1:30:59]} 2. c4 {[%clk 1:31:24]}  e6 {[%clk 1:31:24]} 3. Nc3 {[%clk 1:31:44]}  Bb4 {[%clk 1:31:50]}
4. Nf3 {[%clk 1:31:47]}  b6 {[%clk 1:32:04]} 5. e3 {[%clk 1:31:22]}  Bb7 {[%clk 1:31:37]} 6. Bd3 {[%clk 1:31:48]}  O-O {[%clk 1:31:09]}
7. O-O {[%clk 1:31:30]}  d5 {[%clk 1:30:00]} 8. cxd5 {[%clk 1:30:47]}  exd5 {[%clk 1:30:28]} 9. Qc2 {[%clk 1:30:31]}  Re8 {[%clk 1:29:39]}
10. Ne5 {[%clk 1:23:26]}  Bf8 {[%clk 1:27:55]} 11. Bd2 {[%clk 1:12:57]}  c5 {[%clk 1:28:01]} 12. Bb5 {[%clk 1:13:07]}  Re6 {[%clk 1:28:00]}
13. Qf5 {[%clk 1:05:43]}  g6 {[%clk 1:20:16]} 14. Qh3 {[%clk 0:59:37]}  a6 {[%clk 1:16:18]} 15. Bd3 {[%clk 0:55:46]}  Nc6 {[%clk 1:16:04]}
16. f4 {[%clk 0:53:44]}  cxd4 {[%clk 1:09:12]} 17. Nxc6 {[%clk 0:53:30]}  Bxc6 {[%clk 1:08:53]} 18. exd4 {[%clk 0:53:59]}  Ne4 {[%clk 1:08:44]}
19. f5 {[%clk 0:52:12]}  Re8 {[%clk 1:08:58]} 20. Be3 {[%clk 0:41:53]}  Bg7 {[%clk 1:06:06]} 21. Rae1 {[%clk 0:38:34]}  b5 {[%clk 1:04:32]}
22. Qg4 {[%clk 0:28:13]}  b4 {[%clk 1:01:48]} 23. Nxe4 {[%clk 0:23:27]}  dxe4 {[%clk 1:02:09]} 24. Bc4 {[%clk 0:23:52]}  Bd5 {[%clk 1:02:14]}
25. Rc1 {[%clk 0:24:10]}  Bxc4 {[%clk 1:01:19]} 26. Rxc4 {[%clk 0:24:38]}  Qd6 {[%clk 0:59:52]} 27. b3 {[%clk 0:22:21]}  a5 {[%clk 0:59:59]}
28. Qh4 {[%clk 0:18:10]}  Ra6 {[%clk 1:00:04]} 29. Rf4 {[%clk 0:14:44]}  Bf6 {[%clk 0:54:53]} 30. Qg4 {[%clk 0:15:06]}  h5 {[%clk 0:54:44]}
31. Qe2 {[%clk 0:13:47]}  a4 {[%clk 0:54:15]} 32. fxg6 {[%clk 0:13:25]}  fxg6 {[%clk 0:54:37]} 33. bxa4 {[%clk 0:12:29]}  Bg5 {[%clk 0:51:48]}
34. Rf1 {[%clk 0:11:45]}  Bxe3+ {[%clk 0:49:29]} 35. Qxe3 {[%clk 0:12:13]}  Kg7 {[%clk 0:44:07]} 36. Rfc1 {[%clk 0:11:16]}  Re7 {[%clk 0:43:00]}
37. h3 {[%clk 0:09:07]}  Kh7 {[%clk 0:36:45]} 38. Rc8 {[%clk 0:07:29]}  Rd7 {[%clk 0:33:57]} 39. Qxe4 {[%clk 0:01:19]}  Qxd4+ {[%clk 0:34:18]}
40. Qxd4 {[%clk 0:01:45]}  Rxd4 {[%clk 0:34:47]} 41. R1c7+ {[%clk 0:00:36]}  Kh6 {[%clk 0:35:16]} 42. Rc4 {[%clk 0:21:00]}  Rd1+ {[%clk 1:02:53]}
43. Kh2 {[%clk 0:20:08]}  Rxa4 {[%clk 1:01:34]} 44. h4 {[%clk 0:18:22]}  Rd7 {[%clk 1:01:35]} 45. Rh8+ {[%clk 0:16:08]}  Kg7 {[%clk 1:01:34]}
46. Rb8 {[%clk 0:16:28]}  Rxa2 {[%clk 1:01:49]} 47. Rcxb4 {[%clk 0:16:55]}  Ra6 {[%clk 1:01:10]} 48. R4b7 {[%clk 0:17:16]}  Rxb7 {[%clk 1:01:36]}
49. Rxb7+ {[%clk 0:17:44]}  Kf6 {[%clk 1:02:05]} 50. Kh3 {[%clk 0:17:42]}  Ra5 {[%clk 1:02:14]} 51. g3 {[%clk 0:17:43]}  Re5 {[%clk 1:02:37]}
52. Ra7 {[%clk 0:17:32]}  Re2 {[%clk 1:03:03]} 53. Ra6+ {[%clk 0:17:42]}  Kf5 {[%clk 1:03:30]} 54. Ra5+ {[%clk 0:18:04]}  Re5 {[%clk 1:03:50]}
55. Rxe5+ {[%clk 0:18:04]}  Kxe5 {[%clk 1:04:18]} 56. g4 {[%clk 0:18:31]}  hxg4+ {[%clk 1:04:43]} 57. Kxg4 {[%clk 0:18:59]}  Kf6 {[%clk 1:05:10]}
58. h5 {[%clk 0:19:25]}  gxh5+ {[%clk 1:05:37]} 59. Kxh5 {[%clk 0:19:53]}  Ke5 {[%clk 1:05:29]} 1/2-1/2

[Event "2026 European Womens Championship"]
[Site "Batumi, GE"]
[Date "2026.06.05"]
[Round "11"]
[White "Lomaia, Diana"]
[Black "Zeliantsova, Kseniya"]
[Result "1/2-1/2"]
[Board "48"]
[TimeControl "5400+30"]
[WhiteFideId "13612476"]
[BlackFideId "13512617"]
[WhiteElo "2110"]
[BlackElo "2176"]
[WhiteTitle "WFM"]
[BlackTitle "WFM"]
[WhiteClock "0:34:08"]
[BlackClock "0:12:38"]
[Variant "Standard"]

1. d4 {[%clk 1:30:57]}  Nf6 {[%clk 1:30:54]} 2. c4 {[%clk 1:31:22]}  g6 {[%clk 1:31:18]} 3. f3 {[%clk 1:31:38]}  c5 {[%clk 1:29:59]}
4. dxc5 {[%clk 1:30:18]}  Qa5+ {[%clk 1:29:19]} 5. Nc3 {[%clk 1:29:02]}  Qxc5 {[%clk 1:28:34]} 6. e4 {[%clk 1:29:08]}  Bg7 {[%clk 1:27:26]}
7. Qd3 {[%clk 1:27:03]}  Nc6 {[%clk 1:20:47]} 8. Be3 {[%clk 1:26:07]}  Qa5 {[%clk 1:20:59]} 9. Qd2 {[%clk 1:25:34]}  O-O {[%clk 1:18:14]}
10. Nge2 {[%clk 1:24:13]}  d6 {[%clk 1:15:59]} 11. Nd4 {[%clk 1:23:15]}  Nxd4 {[%clk 1:13:45]} 12. Bxd4 {[%clk 1:23:33]}  Be6 {[%clk 1:11:08]}
13. Rd1 {[%clk 1:18:16]}  Rfc8 {[%clk 1:03:02]} 14. b3 {[%clk 1:17:48]}  a6 {[%clk 0:59:32]} 15. Nd5 {[%clk 1:13:21]}  Qxd2+ {[%clk 0:59:35]}
16. Rxd2 {[%clk 1:13:49]}  Bxd5 {[%clk 0:56:08]} 17. exd5 {[%clk 1:12:44]}  b5 {[%clk 0:54:03]} 18. Bxf6 {[%clk 1:06:34]}  Bxf6 {[%clk 0:51:59]}
19. Kf2 {[%clk 1:06:50]}  b4 {[%clk 0:50:23]} 20. Be2 {[%clk 1:06:10]}  a5 {[%clk 0:50:04]} 21. Bd1 {[%clk 1:05:00]}  Bc3 {[%clk 0:47:34]}
22. Rd3 {[%clk 1:03:09]}  Ra6 {[%clk 0:43:05]} 23. f4 {[%clk 1:01:24]}  Re8 {[%clk 0:36:01]} 24. a4 {[%clk 0:54:55]}  Ra7 {[%clk 0:29:55]}
25. Bf3 {[%clk 0:53:23]}  Kg7 {[%clk 0:26:25]} 26. Rhd1 {[%clk 0:53:03]}  h5 {[%clk 0:24:46]} 27. g3 {[%clk 0:49:41]}  Rc7 {[%clk 0:22:46]}
28. Bg2 {[%clk 0:46:57]}  Rh8 {[%clk 0:20:43]} 29. h4 {[%clk 0:40:28]}  f6 {[%clk 0:16:40]} 30. Rf3 {[%clk 0:35:12]}  Re8 {[%clk 0:13:40]}
31. Bh3 {[%clk 0:34:48]}  f5 {[%clk 0:12:58]} 32. Re3 {[%clk 0:34:08]}  Kf7 {[%clk 0:12:38]} 1/2-1/2